[Event "Late-Titled-Tuesday-Blitz-June-18-2024"]
[Site "Chess.com"]
[Date "2024.06.18"]
[Round "3"]
[White "Journey_to_GrandMaster_YT"]
[Black "Rainbow2014"]
[Result "0-1"]
[WhiteElo "2622"]
[BlackElo "2472"]
[TimeControl "180+1"]
[EndTime "14:30:29 PDT"]
[Termination "Rainbow2014 won by checkmate"]

1. d4 {[%clk 0:02:59]} 1... Nf6 {[%clk 0:02:59.7]} 2. Nf3 {[%clk 0:02:58.6]}
2... e6 {[%clk 0:02:58.9]} 3. e3 {[%clk 0:02:58.4]} 3... b6 {[%clk 0:02:58.4]}
4. Bd3 {[%clk 0:02:58.4]} 4... Bb7 {[%clk 0:02:58.8]} 5. O-O {[%clk 0:02:58.9]}
5... c5 {[%clk 0:02:59.2]} 6. c4 {[%clk 0:02:57.5]} 6... cxd4 {[%clk 0:02:57.8]}
7. exd4 {[%clk 0:02:58.4]} 7... d5 {[%clk 0:02:58.1]} 8. Nc3 {[%clk 0:02:57.8]}
8... Nbd7 {[%clk 0:02:52]} 9. Qa4 {[%clk 0:02:44.8]} 9... dxc4 {[%clk
0:02:48.9]} 10. Bxc4 {[%clk 0:02:43.1]} 10... Bxf3 {[%clk 0:02:40.5]} 11. gxf3
{[%clk 0:02:40.2]} 11... Be7 {[%clk 0:02:26.8]} 12. Bf4 {[%clk 0:02:36.1]} 12...
O-O {[%clk 0:02:25.9]} 13. Rad1 {[%clk 0:02:29.5]} 13... a6 {[%clk 0:02:21.1]}
14. Qc2 {[%clk 0:02:19.8]} 14... b5 {[%clk 0:02:19.7]} 15. Bb3 {[%clk
0:02:16.9]} 15... Rc8 {[%clk 0:02:18.1]} 16. Qe2 {[%clk 0:02:10.3]} 16... Nb6
{[%clk 0:02:15.9]} 17. a4 {[%clk 0:02:02.8]} 17... Nfd5 {[%clk 0:01:54.7]} 18.
Be5 {[%clk 0:01:50.9]} 18... Nxc3 {[%clk 0:01:45.5]} 19. bxc3 {[%clk 0:01:50.2]}
19... Rxc3 {[%clk 0:01:46.4]} 20. Bc2 {[%clk 0:01:26.9]} 20... Qc8 {[%clk
0:01:37.5]} 21. Rc1 {[%clk 0:01:15.8]} 21... b4 {[%clk 0:01:27.6]} 22. d5 {[%clk
0:01:09.7]} 22... Nxd5 {[%clk 0:01:24.6]} 23. Bxc3 {[%clk 0:00:47.8]} 23... bxc3
{[%clk 0:01:25.5]} 24. Rfd1 {[%clk 0:00:43.4]} 24... Bg5 {[%clk 0:01:20.1]} 25.
Rb1 {[%clk 0:00:36.2]} 25... Bd2 {[%clk 0:01:12.5]} 26. Qe4 {[%clk 0:00:32.7]}
26... g6 {[%clk 0:01:06.6]} 27. Kh1 {[%clk 0:00:29.4]} 27... Qc5 {[%clk
0:01:03.2]} 28. Qe2 {[%clk 0:00:25.6]} 28... Nf4 {[%clk 0:01:01]} 29. Qxa6
{[%clk 0:00:20.2]} 29... Qxf2 {[%clk 0:00:56.4]} 30. Qf1 {[%clk 0:00:20.5]}
30... Qe3 {[%clk 0:00:50.6]} 31. a5 {[%clk 0:00:17.1]} 31... Ra8 {[%clk
0:00:49.1]} 32. Ra1 {[%clk 0:00:16.7]} 32... Ne2 {[%clk 0:00:40.6]} 33. a6
{[%clk 0:00:15.6]} 33... Nd4 {[%clk 0:00:40.2]} 34. a7 {[%clk 0:00:14.2]} 34...
Nxc2 {[%clk 0:00:39.3]} 35. Rdb1 {[%clk 0:00:13]} 35... Rxa7 {[%clk 0:00:36]}
36. Rxa7 {[%clk 0:00:12.4]} 36... Qxa7 {[%clk 0:00:35.4]} 37. Qd3 {[%clk
0:00:09.4]} 37... Nd4 {[%clk 0:00:27.2]} 38. Rb4 {[%clk 0:00:08]} 38... e5
{[%clk 0:00:26.4]} 39. Rc4 {[%clk 0:00:07.4]} 39... Qb7 {[%clk 0:00:25.8]} 40.
Qe4 {[%clk 0:00:04.2]} 40... Qxe4 {[%clk 0:00:24.7]} 41. fxe4 {[%clk 0:00:05.1]}
41... f5 {[%clk 0:00:20]} 42. exf5 {[%clk 0:00:04.7]} 42... gxf5 {[%clk
0:00:20.3]} 43. Kg2 {[%clk 0:00:05.3]} 43... c2 {[%clk 0:00:20.6]} 44. Kg3
{[%clk 0:00:03.5]} 44... c1=Q {[%clk 0:00:20.6]} 45. Rxc1 {[%clk 0:00:04.4]}
45... Bxc1 {[%clk 0:00:20.8]} 46. Kh4 {[%clk 0:00:05.1]} 46... Kg7 {[%clk
0:00:20.9]} 47. Kh5 {[%clk 0:00:05.8]} 47... Ne6 {[%clk 0:00:20.2]} 48. Kh4
{[%clk 0:00:05]} 48... Kg6 {[%clk 0:00:19.9]} 49. Kg3 {[%clk 0:00:04.9]} 49...
Bf4+ {[%clk 0:00:19.9]} 50. Kh4 {[%clk 0:00:04.9]} 50... Bxh2 {[%clk 0:00:17.6]}
51. Kh3 {[%clk 0:00:03.8]} 51... Bf4 {[%clk 0:00:18.3]} 52. Kh4 {[%clk
0:00:04.7]} 52... Bg5+ {[%clk 0:00:18.6]} 53. Kh3 {[%clk 0:00:05.6]} 53... Nf4+
{[%clk 0:00:18.8]} 54. Kg3 {[%clk 0:00:06.5]} 54... e4 {[%clk 0:00:19.2]} 55.
Kf2 {[%clk 0:00:06.7]} 55... Nd5 {[%clk 0:00:19.2]} 56. Kg3 {[%clk 0:00:07.4]}
56... e3 {[%clk 0:00:19.4]} 57. Kf3 {[%clk 0:00:08.3]} 57... f4 {[%clk
0:00:19.5]} 58. Ke2 {[%clk 0:00:08.7]} 58... Kf5 {[%clk 0:00:19]} 59. Kf3 {[%clk
0:00:09.6]} 59... Nc3 {[%clk 0:00:18.8]} 60. Kg2 {[%clk 0:00:10.5]} 60... Kg4
{[%clk 0:00:18.5]} 61. Kh2 {[%clk 0:00:10.7]} 61... f3 {[%clk 0:00:18.2]} 62.
Kh1 {[%clk 0:00:10.8]} 62... e2 {[%clk 0:00:17.1]} 63. Kh2 {[%clk 0:00:11.7]}
63... Bf4+ {[%clk 0:00:17.1]} 64. Kg1 {[%clk 0:00:11.7]} 64... e1=Q# {[%clk
0:00:17]} 0-1

[Event "Late-Titled-Tuesday-Blitz-June-18-2024"]
[Site "Chess.com"]
[Date "2024.06.18"]
[Round "3"]
[White "rasmussvane"]
[Black "reevecanada"]
[Result "1-0"]
[WhiteElo "2981"]
[BlackElo "2613"]
[TimeControl "180+1"]
[EndTime "14:30:31 PDT"]
[Termination "rasmussvane won by checkmate"]

1. Nf3 {[%clk 0:02:49.1]} 1... d5 {[%clk 0:02:58.9]} 2. g3 {[%clk 0:02:48.8]}
2... Nd7 {[%clk 0:02:58.8]} 3. d4 {[%clk 0:02:48.9]} 3... Nb6 {[%clk 0:02:58.8]}
4. Nc3 {[%clk 0:02:49.3]} 4... Bf5 {[%clk 0:02:58.4]} 5. Bg2 {[%clk 0:02:49.5]}
5... e6 {[%clk 0:02:58.8]} 6. Nh4 {[%clk 0:02:49.2]} 6... Nf6 {[%clk 0:02:59.3]}
7. Nxf5 {[%clk 0:02:48.7]} 7... exf5 {[%clk 0:02:59.6]} 8. Qd3 {[%clk
0:02:49.3]} 8... g6 {[%clk 0:02:59.1]} 9. Bg5 {[%clk 0:02:49]} 9... c6 {[%clk
0:02:57.8]} 10. O-O {[%clk 0:02:47.9]} 10... Be7 {[%clk 0:02:53.2]} 11. Bxf6
{[%clk 0:02:46.3]} 11... Bxf6 {[%clk 0:02:52.5]} 12. e3 {[%clk 0:02:44.1]} 12...
O-O {[%clk 0:02:52.6]} 13. a4 {[%clk 0:02:43.1]} 13... a5 {[%clk 0:02:48.1]} 14.
b3 {[%clk 0:02:43.3]} 14... Rc8 {[%clk 0:02:48.1]} 15. Ne2 {[%clk 0:02:36.4]}
15... c5 {[%clk 0:02:46.8]} 16. c3 {[%clk 0:02:36.6]} 16... c4 {[%clk 0:02:43]}
17. bxc4 {[%clk 0:02:28.4]} 17... Rxc4 {[%clk 0:02:37.1]} 18. Nf4 {[%clk
0:02:19.5]} 18... Rc6 {[%clk 0:02:12]} 19. Rfb1 {[%clk 0:02:15.6]} 19... Bg5
{[%clk 0:02:09.1]} 20. Ne2 {[%clk 0:02:12.9]} 20... Qc7 {[%clk 0:02:06.1]} 21.
Rb5 {[%clk 0:02:11.7]} 21... Rd8 {[%clk 0:01:49.7]} 22. Rxa5 {[%clk 0:02:04.2]}
22... Rc4 {[%clk 0:01:47.5]} 23. Rb5 {[%clk 0:01:55.1]} 23... Qc6 {[%clk
0:01:41.1]} 24. h4 {[%clk 0:01:18.8]} 24... Bh6 {[%clk 0:01:39.5]} 25. Rb4
{[%clk 0:01:13.2]} 25... Bf8 {[%clk 0:01:21.2]} 26. Rxc4 {[%clk 0:01:11.1]}
26... Nxc4 {[%clk 0:01:14.1]} 27. Qb1 {[%clk 0:00:58.6]} 27... Ra8 {[%clk
0:01:04.8]} 28. Nf4 {[%clk 0:00:56.4]} 28... Nd2 {[%clk 0:00:59.7]} 29. Qa2
{[%clk 0:00:45.9]} 29... Ne4 {[%clk 0:00:54.4]} 30. Nxd5 {[%clk 0:00:38.2]}
30... Nxc3 {[%clk 0:00:28.9]} 31. Nxc3 {[%clk 0:00:37.7]} 31... Qxc3 {[%clk
0:00:29.5]} 32. Bxb7 {[%clk 0:00:29.9]} 32... Ra7 {[%clk 0:00:29.7]} 33. Bg2
{[%clk 0:00:27.1]} 33... Bb4 {[%clk 0:00:28.6]} 34. Rb1 {[%clk 0:00:21]} 34...
Kg7 {[%clk 0:00:23.9]} 35. Bf3 {[%clk 0:00:16.1]} 35... h5 {[%clk 0:00:20.6]}
36. Kg2 {[%clk 0:00:16.6]} 36... Be7 {[%clk 0:00:18.5]} 37. Rb7 {[%clk
0:00:12.9]} 37... Rxb7 {[%clk 0:00:17.1]} 38. Bxb7 {[%clk 0:00:13.8]} 38... Bb4
{[%clk 0:00:17.2]} 39. Bd5 {[%clk 0:00:12.7]} 39... Qc7 {[%clk 0:00:17.6]} 40.
Qb3 {[%clk 0:00:09.1]} 40... Ba5 {[%clk 0:00:17.1]} 41. Qb5 {[%clk 0:00:08.8]}
41... Kf6 {[%clk 0:00:12.5]} 42. Bf3 {[%clk 0:00:07.4]} 42... Be1 {[%clk
0:00:11.3]} 43. Qe2 {[%clk 0:00:06.5]} 43... Ba5 {[%clk 0:00:10.5]} 44. Qa6+
{[%clk 0:00:06.5]} 44... Kg7 {[%clk 0:00:10.1]} 45. Qc6 {[%clk 0:00:05.3]} 45...
Qd8 {[%clk 0:00:09]} 46. Qd5 {[%clk 0:00:04.8]} 46... Qc7 {[%clk 0:00:09.3]} 47.
Qc5 {[%clk 0:00:04.3]} 47... Qd8 {[%clk 0:00:07.6]} 48. Qc4 {[%clk 0:00:04.3]}
48... Qd6 {[%clk 0:00:05.8]} 49. Bd5 {[%clk 0:00:04.8]} 49... Qe7 {[%clk
0:00:05.6]} 50. Qb5 {[%clk 0:00:05.1]} 50... Qc7 {[%clk 0:00:05]} 51. Bf3 {[%clk
0:00:05.3]} 51... Be1 {[%clk 0:00:03.6]} 52. Qb2 {[%clk 0:00:04.5]} 52... Bc3
{[%clk 0:00:02.6]} 53. Qc2 {[%clk 0:00:04.4]} 53... Qa5 {[%clk 0:00:03.1]} 54.
Qb3 {[%clk 0:00:04.5]} 54... Be1 {[%clk 0:00:02]} 55. Qc2 {[%clk 0:00:04]} 55...
Qb4 {[%clk 0:00:02.2]} 56. Bd5 {[%clk 0:00:04.1]} 56... Bc3 {[%clk 0:00:02.7]}
57. Ba2 {[%clk 0:00:03.8]} 57... Bb2 {[%clk 0:00:02.5]} 58. Qb3 {[%clk 0:00:04]}
58... Qd2 {[%clk 0:00:03.1]} 59. Qxf7+ {[%clk 0:00:03.9]} 59... Kh6 {[%clk
0:00:02.9]} 60. Qf8+ {[%clk 0:00:04.2]} 60... Kh7 {[%clk 0:00:03.8]} 61. Bg8+
{[%clk 0:00:04.3]} 61... Kh8 {[%clk 0:00:04.4]} 62. Bf7+ {[%clk 0:00:05]} 62...
Kh7 {[%clk 0:00:04]} 63. Qg8+ {[%clk 0:00:05.6]} 63... Kh6 {[%clk 0:00:04.9]}
64. Qxg6# {[%clk 0:00:06.3]} 1-0

[Event "Late-Titled-Tuesday-Blitz-June-18-2024"]
[Site "Chess.com"]
[Date "2024.06.18"]
[Round "3"]
[White "malakismayil"]
[Black "dretch"]
[Result "1/2-1/2"]
[WhiteElo "2560"]
[BlackElo "2845"]
[TimeControl "180+1"]
[EndTime "14:30:33 PDT"]
[Termination "Game drawn by repetition"]

1. e4 {[%clk 0:03:00.9]} 1... e6 {[%clk 0:03:00]} 2. d4 {[%clk 0:02:59.9]} 2...
d5 {[%clk 0:03:00]} 3. Nd2 {[%clk 0:02:59.5]} 3... c5 {[%clk 0:02:59.9]} 4. exd5
{[%clk 0:02:59.1]} 4... Qxd5 {[%clk 0:02:59.3]} 5. Ngf3 {[%clk 0:02:59.6]} 5...
cxd4 {[%clk 0:02:58.5]} 6. Bc4 {[%clk 0:03:00]} 6... Qd6 {[%clk 0:02:58.1]} 7.
O-O {[%clk 0:03:00.9]} 7... Nf6 {[%clk 0:02:58.1]} 8. Nb3 {[%clk 0:03:01.5]}
8... Nc6 {[%clk 0:02:57.7]} 9. Nbxd4 {[%clk 0:03:02]} 9... Nxd4 {[%clk
0:02:57.8]} 10. Nxd4 {[%clk 0:03:02.9]} 10... Be7 {[%clk 0:02:58.1]} 11. c3
{[%clk 0:03:03.1]} 11... O-O {[%clk 0:02:56.9]} 12. Qf3 {[%clk 0:03:01.4]} 12...
Bd7 {[%clk 0:02:54.8]} 13. Re1 {[%clk 0:02:58]} 13... Qc7 {[%clk 0:02:50.1]} 14.
Bb3 {[%clk 0:02:56.1]} 14... Rae8 {[%clk 0:02:48.6]} 15. Bf4 {[%clk 0:02:50.8]}
15... Qa5 {[%clk 0:02:32.7]} 16. Qxb7 {[%clk 0:02:41.1]} 16... Rc8 {[%clk
0:02:17.9]} 17. Qf3 {[%clk 0:02:24.8]} 17... Rfe8 {[%clk 0:02:00.2]} 18. Rad1
{[%clk 0:02:17.1]} 18... Qb6 {[%clk 0:01:55.5]} 19. Be5 {[%clk 0:01:51.1]} 19...
a5 {[%clk 0:01:53.2]} 20. Qe2 {[%clk 0:01:28.9]} 20... a4 {[%clk 0:01:50.3]} 21.
Bc4 {[%clk 0:01:11.7]} 21... Rc5 {[%clk 0:01:41.7]} 22. b3 {[%clk 0:01:02.7]}
22... Rec8 {[%clk 0:01:33.9]} 23. Nf3 {[%clk 0:00:59.2]} 23... Qc6 {[%clk
0:00:59.7]} 24. Bd4 {[%clk 0:00:48.9]} 24... Ra5 {[%clk 0:00:51.2]} 25. Ne5
{[%clk 0:00:46.3]} 25... Qc7 {[%clk 0:00:33.3]} 26. Nxf7 {[%clk 0:00:33.2]}
26... Kxf7 {[%clk 0:00:30.6]} 27. Bxe6+ {[%clk 0:00:32.2]} 27... Bxe6 {[%clk
0:00:24.5]} 28. Qxe6+ {[%clk 0:00:33.1]} 28... Kf8 {[%clk 0:00:20.4]} 29. Bxf6
{[%clk 0:00:21.9]} 29... Bxf6 {[%clk 0:00:18]} 30. Rd7 {[%clk 0:00:20.7]} 30...
Qxd7 {[%clk 0:00:18]} 31. Qxd7 {[%clk 0:00:20.3]} 31... Rd8 {[%clk 0:00:16.9]}
32. Qc7 {[%clk 0:00:17.5]} 32... Raa8 {[%clk 0:00:15.9]} 33. Qc5+ {[%clk
0:00:14.7]} 33... Kg8 {[%clk 0:00:15.2]} 34. c4 {[%clk 0:00:15.4]} 34... a3
{[%clk 0:00:15]} 35. g3 {[%clk 0:00:14.4]} 35... h6 {[%clk 0:00:14.1]} 36. Qe3
{[%clk 0:00:13.2]} 36... Bd4 {[%clk 0:00:13.1]} 37. Qe6+ {[%clk 0:00:12.6]}
37... Kh8 {[%clk 0:00:13.3]} 38. Re2 {[%clk 0:00:13.2]} 38... Rf8 {[%clk
0:00:13]} 39. Kg2 {[%clk 0:00:11.5]} 39... Ra7 {[%clk 0:00:12.3]} 40. f4 {[%clk
0:00:10.7]} 40... Bf6 {[%clk 0:00:11.7]} 41. Qd5 {[%clk 0:00:10.6]} 41... Rd8
{[%clk 0:00:11.7]} 42. Qf3 {[%clk 0:00:09.9]} 42... Rad7 {[%clk 0:00:11.5]} 43.
h4 {[%clk 0:00:08.5]} 43... Rd3 {[%clk 0:00:11.7]} 44. Qe4 {[%clk 0:00:07.6]}
44... Rd1 {[%clk 0:00:10.9]} 45. Rc2 {[%clk 0:00:04.9]} 45... R1d2+ {[%clk
0:00:10]} 46. Kf3 {[%clk 0:00:03.7]} 46... R2d3+ {[%clk 0:00:10]} 47. Kg4 {[%clk
0:00:03.6]} 47... R3d4 {[%clk 0:00:08.5]} 48. Qe6 {[%clk 0:00:03.4]} 48... Rd3
{[%clk 0:00:08.7]} 49. c5 {[%clk 0:00:03.2]} 49... h5+ {[%clk 0:00:08.1]} 50.
Kh3 {[%clk 0:00:02.6]} 50... Kh7 {[%clk 0:00:07.6]} 51. c6 {[%clk 0:00:03.1]}
51... Rf3 {[%clk 0:00:02.4]} 52. Qf5+ {[%clk 0:00:03]} 52... Kh6 {[%clk
0:00:02.1]} 53. Qe4 {[%clk 0:00:02.9]} 53... Rdd3 {[%clk 0:00:02.1]} 54. Rg2
{[%clk 0:00:03.6]} 54... Rc3 {[%clk 0:00:02.1]} 55. b4 {[%clk 0:00:02.9]} 55...
Rf1 {[%clk 0:00:02.8]} 56. b5 {[%clk 0:00:02.4]} 56... Rh1+ {[%clk 0:00:03.1]}
57. Rh2 {[%clk 0:00:03.1]} 57... Rg1 {[%clk 0:00:03.8]} 58. Rg2 {[%clk
0:00:02.2]} 58... Rh1+ {[%clk 0:00:04.3]} 59. Rh2 {[%clk 0:00:02.9]} 59... Rg1
{[%clk 0:00:04.9]} 60. Rg2 {[%clk 0:00:02.7]} 60... Rh1+ {[%clk 0:00:05.4]}
1/2-1/2

[Event "Late-Titled-Tuesday-Blitz-June-18-2024"]
[Site "Chess.com"]
[Date "2024.06.18"]
[Round "3"]
[White "SocoLoco"]
[Black "EliteChess0967"]
[Result "1/2-1/2"]
[WhiteElo "2177"]
[BlackElo "2390"]
[TimeControl "180+1"]
[EndTime "14:30:42 PDT"]
[Termination "Game drawn - insufficient material"]

1. e4 {[%clk 0:03:00]} 1... e5 {[%clk 0:02:56.7]} 2. d4 {[%clk 0:02:59.6]} 2...
exd4 {[%clk 0:02:56.6]} 3. Nf3 {[%clk 0:02:59.8]} 3... Nc6 {[%clk 0:02:55.9]} 4.
Nxd4 {[%clk 0:02:59.8]} 4... Qf6 {[%clk 0:02:56.2]} 5. Be3 {[%clk 0:02:59.4]}
5... Bc5 {[%clk 0:02:55.4]} 6. Nb5 {[%clk 0:02:59.8]} 6... Bxe3 {[%clk 0:02:53]}
7. fxe3 {[%clk 0:03:00.7]} 7... Qd8 {[%clk 0:02:39]} 8. N1c3 {[%clk 0:02:59.9]}
8... a6 {[%clk 0:02:39]} 9. Nd4 {[%clk 0:03:00.5]} 9... Nge7 {[%clk 0:02:37.9]}
10. Be2 {[%clk 0:02:59.6]} 10... O-O {[%clk 0:02:36.1]} 11. O-O {[%clk
0:03:00.1]} 11... d6 {[%clk 0:02:36]} 12. Bg4 {[%clk 0:02:51.2]} 12... Ne5
{[%clk 0:02:20.1]} 13. Bxc8 {[%clk 0:02:48.9]} 13... Qxc8 {[%clk 0:02:20.3]} 14.
Nd5 {[%clk 0:02:45.2]} 14... Nxd5 {[%clk 0:01:58.6]} 15. exd5 {[%clk 0:02:46.1]}
15... Qg4 {[%clk 0:01:56.9]} 16. Nf5 {[%clk 0:01:40.5]} 16... Qxd1 {[%clk
0:01:46.1]} 17. Raxd1 {[%clk 0:01:41.4]} 17... Rfe8 {[%clk 0:01:44]} 18. b3
{[%clk 0:01:39.7]} 18... g6 {[%clk 0:01:42.8]} 19. Nd4 {[%clk 0:01:32.4]} 19...
Ng4 {[%clk 0:01:35.7]} 20. Rf3 {[%clk 0:01:28.7]} 20... Nxe3 {[%clk 0:01:30.7]}
21. Rd2 {[%clk 0:01:00.7]} 21... Nxd5 {[%clk 0:01:13]} 22. Nf5 {[%clk 0:01:00]}
22... Ne7 {[%clk 0:00:28.9]} 23. Nd4 {[%clk 0:00:55.7]} 23... Nc6 {[%clk
0:00:24.3]} 24. Ne2 {[%clk 0:00:53.8]} 24... Kg7 {[%clk 0:00:22.8]} 25. h3
{[%clk 0:00:53.5]} 25... Ne5 {[%clk 0:00:20.8]} 26. Rf2 {[%clk 0:00:52.7]} 26...
f5 {[%clk 0:00:21.2]} 27. c4 {[%clk 0:00:50.8]} 27... Rad8 {[%clk 0:00:19]} 28.
Nd4 {[%clk 0:00:50.7]} 28... Re7 {[%clk 0:00:18.2]} 29. Rf1 {[%clk 0:00:49.1]}
29... Rde8 {[%clk 0:00:18.5]} 30. Rfd1 {[%clk 0:00:49.2]} 30... Nc6 {[%clk
0:00:18.6]} 31. Nf3 {[%clk 0:00:42.6]} 31... Re2 {[%clk 0:00:18.2]} 32. Kf1
{[%clk 0:00:41.5]} 32... Rxd2 {[%clk 0:00:18.3]} 33. Rxd2 {[%clk 0:00:42.4]}
33... h6 {[%clk 0:00:18.6]} 34. a3 {[%clk 0:00:40.4]} 34... Kf6 {[%clk 0:00:19]}
35. b4 {[%clk 0:00:40.5]} 35... g5 {[%clk 0:00:19.1]} 36. b5 {[%clk 0:00:40.4]}
36... axb5 {[%clk 0:00:19.6]} 37. cxb5 {[%clk 0:00:41.3]} 37... Ne5 {[%clk
0:00:20.3]} 38. Nd4 {[%clk 0:00:41.5]} 38... Ra8 {[%clk 0:00:20.2]} 39. Rc2
{[%clk 0:00:41.6]} 39... c5 {[%clk 0:00:19.7]} 40. bxc6 {[%clk 0:00:41.6]} 40...
bxc6 {[%clk 0:00:19.6]} 41. Rc3 {[%clk 0:00:38.7]} 41... c5 {[%clk 0:00:19.3]}
42. Nb5 {[%clk 0:00:38.6]} 42... Ra6 {[%clk 0:00:13.4]} 43. a4 {[%clk
0:00:37.7]} 43... f4 {[%clk 0:00:13.6]} 44. Ra3 {[%clk 0:00:33.9]} 44... Kf5
{[%clk 0:00:12.9]} 45. Nc3 {[%clk 0:00:33.7]} 45... c4 {[%clk 0:00:12]} 46. Nd5
{[%clk 0:00:33.2]} 46... Ke4 {[%clk 0:00:11.7]} 47. Nf6+ {[%clk 0:00:32.9]}
47... Kd4 {[%clk 0:00:11.4]} 48. Ng8 {[%clk 0:00:31.7]} 48... h5 {[%clk
0:00:11.3]} 49. Ne7 {[%clk 0:00:29.2]} 49... c3 {[%clk 0:00:10.6]} 50. Nf5+
{[%clk 0:00:30.1]} 50... Kd3 {[%clk 0:00:10.5]} 51. Ke1 {[%clk 0:00:28.5]} 51...
Rb6 {[%clk 0:00:08.8]} 52. Kf2 {[%clk 0:00:25.9]} 52... Kd2 {[%clk 0:00:07.7]}
53. Nd4 {[%clk 0:00:24.6]} 53... Nc4 {[%clk 0:00:06.5]} 54. Ra2+ {[%clk
0:00:24.2]} 54... Rb2 {[%clk 0:00:06.6]} 55. Ra3 {[%clk 0:00:24]} 55... c2
{[%clk 0:00:06.9]} 56. Nxc2 {[%clk 0:00:24.4]} 56... Kxc2 {[%clk 0:00:07.5]} 57.
a5 {[%clk 0:00:25.1]} 57... Rb3 {[%clk 0:00:07]} 58. Ra4 {[%clk 0:00:24.9]}
58... Nxa5 {[%clk 0:00:07.4]} 59. Rxa5 {[%clk 0:00:24.9]} 59... Rd3 {[%clk
0:00:06.9]} 60. Rxg5 {[%clk 0:00:24.6]} 60... d5 {[%clk 0:00:06.3]} 61. Rxh5
{[%clk 0:00:24.7]} 61... d4 {[%clk 0:00:06.9]} 62. Rf5 {[%clk 0:00:24.9]} 62...
Ra3 {[%clk 0:00:04.4]} 63. h4 {[%clk 0:00:25.2]} 63... d3 {[%clk 0:00:04.8]} 64.
Rc5+ {[%clk 0:00:24.5]} 64... Rc3 {[%clk 0:00:04.6]} 65. Rd5 {[%clk 0:00:24.6]}
65... d2 {[%clk 0:00:05.1]} 66. h5 {[%clk 0:00:25]} 66... d1=Q {[%clk
0:00:05.4]} 67. Rxd1 {[%clk 0:00:25.5]} 67... Kxd1 {[%clk 0:00:06.3]} 68. h6
{[%clk 0:00:25.5]} 68... Rc6 {[%clk 0:00:06.6]} 69. Kf3 {[%clk 0:00:26.4]} 69...
Rxh6 {[%clk 0:00:07]} 70. Kxf4 {[%clk 0:00:27.3]} 70... Ke2 {[%clk 0:00:07.6]}
71. g4 {[%clk 0:00:27.9]} 71... Kd3 {[%clk 0:00:07.4]} 72. g5 {[%clk 0:00:28.8]}
72... Rh1 {[%clk 0:00:06.7]} 73. Kf5 {[%clk 0:00:29.7]} 73... Kd4 {[%clk
0:00:06.1]} 74. Kf6 {[%clk 0:00:29.1]} 74... Ke4 {[%clk 0:00:06.2]} 75. g6
{[%clk 0:00:29.5]} 75... Kf4 {[%clk 0:00:06.7]} 76. g7 {[%clk 0:00:29.8]} 76...
Rg1 {[%clk 0:00:07.2]} 77. Kf7 {[%clk 0:00:30]} 77... Kf5 {[%clk 0:00:07.7]} 78.
g8=Q {[%clk 0:00:30.2]} 78... Rxg8 {[%clk 0:00:08.3]} 79. Kxg8 {[%clk
0:00:30.5]} 1/2-1/2

[Event "Late-Titled-Tuesday-Blitz-June-18-2024"]
[Site "Chess.com"]
[Date "2024.06.18"]
[Round "3"]
[White "Pelusiansky"]
[Black "sergiochess83"]
[Result "1-0"]
[WhiteElo "2567"]
[BlackElo "2862"]
[TimeControl "180+1"]
[EndTime "14:30:49 PDT"]
[Termination "Pelusiansky won on time"]

1. c4 {[%clk 0:03:00.9]} 1... e5 {[%clk 0:02:58]} 2. Nc3 {[%clk 0:03:00.9]} 2...
Nf6 {[%clk 0:02:57.7]} 3. e3 {[%clk 0:03:00.2]} 3... Bb4 {[%clk 0:02:55.7]} 4.
Nge2 {[%clk 0:02:57.1]} 4... O-O {[%clk 0:02:52.1]} 5. a3 {[%clk 0:02:57.3]}
5... Bxc3 {[%clk 0:02:43.8]} 6. Nxc3 {[%clk 0:02:57.4]} 6... d5 {[%clk
0:02:42.8]} 7. cxd5 {[%clk 0:02:57.6]} 7... Nxd5 {[%clk 0:02:43.7]} 8. Be2
{[%clk 0:02:56.9]} 8... Nc6 {[%clk 0:02:29.6]} 9. Qc2 {[%clk 0:02:52.9]} 9...
Re8 {[%clk 0:02:07.3]} 10. d3 {[%clk 0:02:43.8]} 10... Nxc3 {[%clk 0:01:43.8]}
11. bxc3 {[%clk 0:02:42.1]} 11... Qg5 {[%clk 0:01:35]} 12. Bf1 {[%clk
0:02:20.2]} 12... Qg6 {[%clk 0:01:32.4]} 13. h4 {[%clk 0:02:14.7]} 13... h5
{[%clk 0:01:25.3]} 14. e4 {[%clk 0:02:10.7]} 14... b6 {[%clk 0:01:09.3]} 15. Bg5
{[%clk 0:02:08.1]} 15... f6 {[%clk 0:01:07.5]} 16. Be3 {[%clk 0:02:07.5]} 16...
Na5 {[%clk 0:01:07.6]} 17. Rg1 {[%clk 0:01:59.2]} 17... c5 {[%clk 0:01:07.2]}
18. Be2 {[%clk 0:01:49.5]} 18... Be6 {[%clk 0:01:04.8]} 19. Qd1 {[%clk
0:01:39.4]} 19... Bg4 {[%clk 0:00:58.5]} 20. f3 {[%clk 0:01:39.2]} 20... Be6
{[%clk 0:00:58.6]} 21. Kf2 {[%clk 0:01:35.7]} 21... Rad8 {[%clk 0:00:57.6]} 22.
Qc2 {[%clk 0:01:02.8]} 22... Rd7 {[%clk 0:00:57.3]} 23. Rab1 {[%clk 0:00:54.2]}
23... Red8 {[%clk 0:00:57.1]} 24. g3 {[%clk 0:00:52.5]} 24... Qf7 {[%clk
0:00:56.9]} 25. f4 {[%clk 0:00:48.1]} 25... Bg4 {[%clk 0:00:55.3]} 26. Rbd1
{[%clk 0:00:42.3]} 26... Bxe2 {[%clk 0:00:45.8]} 27. Qxe2 {[%clk 0:00:40.7]}
27... Qg6 {[%clk 0:00:43.2]} 28. f5 {[%clk 0:00:37.3]} 28... Qg4 {[%clk
0:00:40.4]} 29. Qxg4 {[%clk 0:00:37.5]} 29... hxg4 {[%clk 0:00:41.3]} 30. Ke2
{[%clk 0:00:38.4]} 30... Kf7 {[%clk 0:00:38.4]} 31. c4 {[%clk 0:00:35.7]} 31...
Nb3 {[%clk 0:00:30]} 32. a4 {[%clk 0:00:26]} 32... Na5 {[%clk 0:00:28.5]} 33.
Rd2 {[%clk 0:00:22.7]} 33... Nc6 {[%clk 0:00:28.7]} 34. Rb1 {[%clk 0:00:22.5]}
34... Nb4 {[%clk 0:00:27]} 35. Rb3 {[%clk 0:00:20]} 35... Nc6 {[%clk 0:00:23.2]}
36. Ra3 {[%clk 0:00:17.7]} 36... Na5 {[%clk 0:00:20]} 37. Rc3 {[%clk 0:00:17.4]}
37... Ke7 {[%clk 0:00:19.6]} 38. Rb2 {[%clk 0:00:15]} 38... Kd6 {[%clk
0:00:19.3]} 39. Bd2 {[%clk 0:00:14.7]} 39... Kc7 {[%clk 0:00:18.3]} 40. Ra3
{[%clk 0:00:14.1]} 40... Nc6 {[%clk 0:00:16.9]} 41. a5 {[%clk 0:00:14.2]} 41...
Rb8 {[%clk 0:00:09.1]} 42. axb6+ {[%clk 0:00:13.6]} 42... axb6 {[%clk 0:00:10]}
43. Bc3 {[%clk 0:00:12]} 43... Rb7 {[%clk 0:00:09.6]} 44. Rb5 {[%clk 0:00:10.7]}
44... Rd8 {[%clk 0:00:09]} 45. Ke3 {[%clk 0:00:11.2]} 45... Ra7 {[%clk
0:00:04.8]} 46. Rbb3 {[%clk 0:00:09.2]} 46... Rxa3 {[%clk 0:00:04.4]} 47. Rxa3
{[%clk 0:00:10.1]} 47... Kb7 {[%clk 0:00:05.1]} 48. Kd2 {[%clk 0:00:07.6]} 48...
Re8 {[%clk 0:00:05.2]} 49. Ke3 {[%clk 0:00:07.7]} 49... Rh8 {[%clk 0:00:04.9]}
50. Ra1 {[%clk 0:00:07.1]} 50... Rd8 {[%clk 0:00:04.5]} 51. Rh1 {[%clk
0:00:05.6]} 51... Rh8 {[%clk 0:00:04.4]} 52. Rf1 {[%clk 0:00:05.9]} 52... Ra8
{[%clk 0:00:03.9]} 53. Ra1 {[%clk 0:00:06.1]} 53... Rxa1 {[%clk 0:00:03.6]} 54.
Bxa1 {[%clk 0:00:07]} 54... Ka6 {[%clk 0:00:03.4]} 55. Bc3 {[%clk 0:00:06.5]}
55... b5 {[%clk 0:00:03.9]} 56. cxb5+ {[%clk 0:00:06.8]} 56... Kxb5 {[%clk
0:00:04.8]} 57. Kd2 {[%clk 0:00:06.8]} 57... Nb4 {[%clk 0:00:04.6]} 58. Ke2
{[%clk 0:00:05.1]} 58... Ka4 {[%clk 0:00:04.2]} 59. h5 {[%clk 0:00:04.5]} 59...
Kb3 {[%clk 0:00:04.3]} 60. Bxe5 {[%clk 0:00:04.9]} 60... fxe5 {[%clk 0:00:02.7]}
61. f6 {[%clk 0:00:04.1]} 61... gxf6 {[%clk 0:00:02.4]} 62. h6 {[%clk
0:00:04.6]} 62... c4 {[%clk 0:00:01.9]} 63. dxc4 {[%clk 0:00:04.5]} 63... Nc6
{[%clk 0:00:01.1]} 64. h7 {[%clk 0:00:04.9]} 64... Nd4+ {[%clk 0:00:01.4]} 65.
Kf2 {[%clk 0:00:05.1]} 1-0